fUSD/lending_fUSD_20240704
["ID","MTS","AMOUNT","RATE_DAILY","PERIOD"]
[331175234,1720119032790,-310.12569177,0.0001387,2]
[331175235,1720119032801,-3332.62267,0.0001387,2]
[331175236,1720119032813,-27083.34233784,0.0001387,2]
[331175237,1720119032822,-499.99,0.0001387,2]
[331175238,1720119032831,-181.31,0.00013872,2]
[331175239,1720119032840,-161.3672115,0.00013975,2]
[331175240,1720119032849,-4539.18903822,0.00013975,2]
[331175241,1720119032858,-201.39580507,0.00013975,2]
[331175242,1720119032867,-1404.77878526,0.00013975,2]
[331175243,1720119032876,-234.09939484,0.00013975,2]
[331175244,1720119032886,-312.71759681,0.00013975,2]
[331175245,1720119032896,-889.07991735,0.00013989,2]
[331175246,1720119032906,-185.46399961,0.0001399,2]
[331175247,1720119032916,-648.08,0.00013997,2]
[331175248,1720119032925,-419.19397489,0.00013999,2]
[331175249,1720119032937,-168.52598414,0.00013999,2]
[331175250,1720119032949,-300.0,0.00013999,2]
[331175251,1720119032959,-19622.36291645,0.00013999,2]
[331175252,1720119032969,-334.75251365,0.00013999,2]
[331175253,1720119032979,-276.77552448,0.00013999,2]
[331175254,1720119032989,-150.0,0.00013999,2]
[331175255,1720119032999,-370.49091679,0.00013999,2]
[331175256,1720119033008,-773438.02068516,0.00014,2]
[331175265,1720119038636,-173.88799368,0.00012302,2]
[331175266,1720119038646,-126.11301032,0.00012302,2]
[331175267,1720119038659,-198.59246213,0.00012302,2]
[331175268,1720119038669,-150.3028587,0.00013849,2]
[331175269,1720119038681,-322.5152993,0.00013849,2]
[331175270,1720119038693,-292.005,0.00013849,2]
[331175271,1720119038705,-290.41472643,0.00013849,2]
[331175272,1720119038715,-3590.55484432,0.00013975,2]
[331175273,1720119038726,-521.06709976,0.00013975,2]
[331175274,1720119038763,-96.72208663,0.00013975,2]
[331175276,1720119038773,-861.14034781,0.00014,2]
[331175278,1720119038785,-72621.08265711,0.00014,2]
[331175280,1720119038798,-1490.43650887,0.00014,2]
[331175283,1720119038810,-354.23051344,0.00014,2]
[331175285,1720119038822,-1664.7,0.00014,2]
[331175504,1720119041047,-1911.65829098,0.00014,2]
[331175786,1720119043594,-1484.83247486,0.00013999,2]
[331175788,1720119043607,-1459.2,0.00013999,2]
[331175790,1720119043618,-273.74302174,0.00013999,2]
[331175864,1720119046914,-274.78102472,0.00013999,2]
[331175867,1720119046926,-501.70372601,0.00013999,2]
[331175869,1720119046938,-1532.54772518,0.00013999,2]
[331175871,1720119046950,-20.0188018,0.00014,2]
[331175873,1720119046962,-880.21327524,0.00014,2]
[331175875,1720119046974,-2570.6092059,0.00014,2]
[331175878,1720119046986,-2195.91192261,0.00014,2]
[331175880,1720119046997,-443.26,0.00014,2]
[331176222,1720119104404,227.14852012,0.00011199,2]
[331176240,1720119348290,19622.36291645,0.00011199,2]
[331176242,1720119444791,1251.71322753,0.00011199,2]
[331176243,1720119506722,497.54172022,0.00011199,2]
[331176245,1720119558085,889.07991735,0.00011199,2]
[331176246,1720119566910,227.14852012,0.00011199,2]
[331176248,1720119747505,1620.3546795,0.00011199,2]
[331176249,1720119775703,1055.32337832,0.00011199,2]
[331176252,1720119893898,5879.89464563,0.00011199,2]
[331176256,1720119981926,227.14852012,0.00011199,2]
[331176257,1720120046466,364.91102497,0.00011199,2]
[331176258,1720120081908,450.75132957,0.00011199,2]
[331176259,1720120089161,212.83513102,0.00011199,2]
[331176261,1720120117383,258.99665836,0.00011199,2]
[331176264,1720120156150,885.77886482,0.00011199,2]
[331176265,1720120159138,205.93964872,0.00011199,2]
[331176266,1720120161175,-500.00888945,0.00011332,2]
[331176267,1720120163119,-83.26111055,0.00011332,2]
[331176268,1720120163140,-166.73888949,0.00012302,2]
[331176269,1720120174091,-390.91214695,0.00012302,2]
[331176270,1720120174111,-224.56763525,0.00012302,2]
[331176278,1720120232753,-1489.97,0.00012971,2]
[331176279,1720120232763,-844.6469,0.00012971,2]
[331176280,1720120232773,-250.0,0.00013051,2]
[331176281,1720120232785,-300.0,0.0001307,2]
[331176282,1720120232795,-12359.61,0.00013071,2]
[331176283,1720120232804,-227.14852012,0.00013128,2]
[331176284,1720120232816,-500.0,0.00013154,2]
[331176285,1720120232827,-178.9,0.00013206,2]
[331176286,1720120232840,-250.0,0.00013268,2]
[331176287,1720120232850,-162.93,0.00013359,2]
[331176288,1720120232859,-499.99,0.00013359,2]
[331176289,1720120232871,-157.51550642,0.00013372,2]
[331176290,1720120232880,-1000.0,0.0001339,2]
[331176291,1720120232889,-300.0,0.00013448,2]
[331176292,1720120232899,-439.36962673,0.00013516,2]
[331176293,1720120232908,-7009.52578849,0.00013574,2]
[331176294,1720120232917,-583.27,0.00013596,2]
[331176295,1720120232926,-9029.29699441,0.000138,2]
[331176296,1720120232935,-12491.4995,0.000139,2]
[331176297,1720120232944,-39047.4493,0.000139,2]
[331176298,1720120232954,-4054.072,0.000139,2]
[331176300,1720120232963,-307.8224,0.000139,2]
[331176302,1720120232972,-500.0,0.000139,2]
[331176304,1720120232982,-4368.4282,0.000139,2]
[331176307,1720120232992,-382.66889221,0.00013906,2]
[331176308,1720120233002,-168.52598414,0.00013926,2]
[331176311,1720120233014,-330.85921288,0.00013926,2]
[331176312,1720120233023,-936.51919018,0.00013926,2]
[331176315,1720120233033,-198.39526868,0.00013926,2]
[331176316,1720120233042,-156.06626322,0.00013926,2]
[331176319,1720120233051,-3577.09877294,0.00013926,2]
[331176321,1720120233061,-312.7175968,0.00013926,2]
[331176323,1720120233070,-205.58994881,0.00013975,2]
[331176325,1720120233079,-268.98,0.0001399,3]
[331176327,1720120233089,-203889.3421343,0.00014,2]
[331176329,1720120233101,-530.44,0.00014,2]
[331176331,1720120233112,-700.0,0.00014,2]
[331176333,1720120233124,-465.65120639,0.00014,2]
[331176336,1720120233135,-582.4,0.00014,2]
[331176338,1720120233146,-500.0,0.00014,2]
[331176340,1720120233158,-1192.8949193,0.00014,2]
[331176342,1720120233170,-6848.33790004,0.00014,2]
[331176344,1720120233181,-2277.24310221,0.00014,2]
[331176350,1720120233226,-6400.0,0.00014,2]
[331176352,1720120233238,-1182590.10741875,0.00014,2]
[331176355,1720120233250,-582.23596,0.00014,2]
[331176357,1720120233261,-11604.01258862,0.00014,2]
[331176453,1720120238632,-2355.90235461,0.00014,2]
[331176456,1720120238644,-3731.29511736,0.00014,2]
[331176471,1720120239072,-1999.96712907,0.00014,2]
[331176472,1720120239086,-3161.75243324,0.00014,2]
[331176473,1720120239100,-1065.1747428,0.00014,2]
[331176474,1720120239113,-8330.66819153,0.00014,2]
[331176475,1720120239126,-312.6138,0.00014,2]
[331176476,1720120239138,-1988.46091552,0.00014,2]
[331176477,1720120239150,-230232.79223608,0.00014,2]
[331176478,1720120239166,-11709.60775064,0.00014,2]
[331176479,1720120239179,-443.13092382,0.00014,2]
[331176480,1720120239192,-1396.8677087,0.00014,2]
[331176481,1720120239204,-482.74772025,0.00014,2]
[331176611,1720120240983,-439.36962673,0.00013472,2]
[331176613,1720120240992,-231.33037327,0.00014,2]
[331176615,1720120241004,-271.26559914,0.00014,2]
[331176617,1720120241015,-864.37318362,0.00014,2]
[331176619,1720120241026,-193466.05558083,0.00014,2]
[331176620,1720120241038,-9868.98114784,0.00014,2]
[331176621,1720120241048,-3870.18624551,0.00014,2]
[331176622,1720120241060,-376.955934,0.00014,2]
[331176623,1720120241071,-72695.16729025,0.00014,2]
[331176624,1720120241082,-3227.78121586,0.00014,2]
[331176625,1720120241098,-85567.13992091,0.00014,2]
[331176626,1720120241109,-373.89184271,0.00014,2]
[331176627,1720120241121,-397.63098387,0.00014,2]
[331176628,1720120241132,-3674.45,0.00014,2]
[331176629,1720120241143,-1697.27162398,0.00014,2]
[331176630,1720120241155,-533.1,0.00014,2]
[331176631,1720120241166,-400.57454152,0.00014,2]
[331176632,1720120241179,-1347.21388594,0.00014,2]
[331176633,1720120241191,-2467.02713386,0.00014,2]
[331176634,1720120241203,-738.4945372,0.00014,2]
[331176635,1720120241456,-43800.66460358,0.00014,2]
[331176636,1720120241467,-3755.125,0.00014,2]
[331176637,1720120241481,-4608.07243216,0.00014,2]
[331176642,1720120243604,-536.71393686,0.00014,2]
[331176643,1720120244037,-250.00397001,0.00014,2]
[331176644,1720120244048,-5557.37127244,0.00014,2]
[331176645,1720120244584,-49269.39928526,0.00014,2]
[331176678,1720120246886,-2453.99958921,0.00014,2]
[331176805,1720120644869,8830.617432,0.00011199,2]
[331176806,1720120680520,7096.36275677,0.00011199,2]
[331176807,1720120714135,711.51,0.00010856,2]
[331176809,1720120771478,2831.82534197,0.00011199,2]
[331176818,1720120875223,1500.0,0.00011199,2]
[331176824,1720120976984,1013.87325221,0.00011199,2]
[331176827,1720121095559,2595.74055892,0.00011199,2]
[331176828,1720121097225,849.14809043,0.00011199,2]
[331176829,1720121123347,821.80541052,0.00011199,2]
[331176830,1720121125729,258.94577751,0.00011199,2]
[331176831,1720121138459,501.90706258,0.00011199,2]
[331176833,1720121164042,558.5111489,0.00011199,2]
[331176834,1720121170592,3110.75746026,0.00011199,2]
[331176835,1720121181650,3393.88143666,0.00011199,2]
[331176836,1720121196396,19626.7662442,0.00011199,2]
[331176837,1720121198603,3393.88143666,0.00011199,2]
[331176838,1720121204041,18235.18299963,0.00011199,2]
[331176839,1720121242430,675.93,9.722e-05,2]
[331176840,1720121243938,3631.02596409,0.00011199,2]
[331176841,1720121251446,7818.8662521,0.00011199,2]
[331176842,1720121260751,5122.03597069,0.00011199,2]
[331176843,1720121290864,167.79,9.165e-05,2]
[331176844,1720121300975,2003.8715436,0.00011199,2]
[331176845,1720121312774,263.50285156,0.00011199,2]
[331176846,1720121314569,173.80868065,0.00011199,2]
[331176847,1720121323599,155.0,0.00011199,2]
[331176848,1720121328097,1162.9,0.00010966,2]
[331176849,1720121329726,-500.0,0.00011482,2]
[331176850,1720121329771,-2471.3995963,0.00011489,2]
[331176851,1720121329818,-171.63,0.00011515,2]
[331176852,1720121330066,-171.63,0.00011546,2]
[331176853,1720121330115,-171.63,0.00011578,2]
[331176854,1720121330162,-761.3,0.00011589,2]
[331176855,1720121330207,-661.67087631,0.00011592,2]
[331176856,1720121330253,-909.02861013,0.00011592,2]
[331176857,1720121330307,-5818.28908274,0.00011592,2]
[331176858,1720121330359,-1129.99977541,0.00011592,2]
[331176859,1720121354576,-204.50554,0.00011534,2]
[331176860,1720121354637,-300.0,0.00011591,2]
[331176861,1720121354687,-5569.11510156,0.00011592,2]
[331176862,1720121354752,-6073.62064156,0.00011592,2]
[331176863,1720121359410,-1338.87494783,0.00011592,2]
[331176864,1720121359439,-13566.64523579,0.00011592,2]
[331176865,1720121371145,243.57159997,0.00011199,2]
[331176866,1720121379651,-158.43957202,0.00011593,2]
[331176867,1720121379703,-171.63,0.0001161,2]
[331176868,1720121379754,-171.63,0.00011641,2]
[331176869,1720121379802,-171.63,0.00011673,2]
[331176870,1720121379848,-791.0,0.00011692,2]
[331176871,1720121379895,-528.27,0.00011693,2]
[331176872,1720121379942,-171.63,0.00011704,2]
[331176873,1720121379988,-165.10242843,0.00011736,2]
[331176874,1720121401927,2737.79461804,0.00011199,2]
[331176875,1720121404306,-6363.15210723,0.00011692,2]
[331176876,1720121404367,-168.0,0.00011691,2]
[331176877,1720121404428,-6195.15210723,0.00011692,2]
[331176878,1720121404488,-2611.92292669,0.00011692,2]
[331176879,1720121412876,921.27116721,0.00011199,2]
[331176880,1720121415566,380.32591715,0.00011199,2]
[331176881,1720121432314,235.73,0.00011094,2]
[331176889,1720121433138,-784.16589355,0.00011592,2]
[331176891,1720121433147,-125.19358755,0.00011692,2]
[331176893,1720121433159,-4454.47574263,0.00011692,2]
[331176894,1720121433168,-6.52757157,0.00011736,2]
[331176895,1720121433178,-185.95,0.0001174,2]
[331176896,1720121433187,-171.63,0.00011768,2]
[331176897,1720121433196,-310.61,0.00011786,2]
[331176898,1720121433206,-150.99,0.00011786,2]
[331176899,1720121433215,-171.63,0.00011799,2]
[331176900,1720121433224,-644.62,0.00011818,2]
[331176901,1720121433233,-3855.18,0.00011818,2]
[331176902,1720121433242,-171.63,0.00011831,2]
[331176903,1720121433252,-171.63,0.00011862,2]
[331176904,1720121433261,-9999.99,0.00011878,2]
[331176905,1720121433270,-171.63,0.00011894,2]
[331176906,1720121433280,-171.63,0.00011926,2]
[331176907,1720121433290,-608.54,0.00011952,2]
[331176908,1720121433299,-23900.0,0.00011953,2]
[331176909,1720121433308,-171.63,0.00011957,2]
[331176910,1720121433318,-675.93,0.00011986,2]
[331176911,1720121433327,-171.63,0.00011989,2]
[331176912,1720121433336,-200.0,0.00011991,2]
[331176913,1720121433346,-250.0,0.00011991,2]
[331176914,1720121433356,-171.63,0.0001202,2]
[331176915,1720121433366,-1000.0,0.00012051,2]
[331176916,1720121433378,-171.63,0.00012052,2]
[331176917,1720121433387,-150.0,0.00012078,2]
[331176918,1720121433397,-499.99,0.00012078,2]
[331176919,1720121433406,-171.63,0.00012084,2]
[331176920,1720121433415,-500.0,0.0001211,2]
[331176921,1720121433425,-8537.91,0.0001211,2]
[331176922,1720121433434,-171.63,0.00012115,2]
[331176923,1720121433446,-250.0,0.00012129,2]
[331176924,1720121433457,-286.59,0.00012218,2]
[331176925,1720121433466,-1292.91,0.00012218,2]
[331176926,1720121433476,-321.67,0.00012218,2]
[331176927,1720121433485,-905.95,0.00012273,2]
[331176928,1720121433495,-155.11959105,0.00012273,2]
[331176929,1720121433504,-292.54926927,0.00012273,2]
[331176930,1720121433514,-294.11862641,0.00012302,2]
[331176931,1720121433524,-276.10780549,0.00012302,2]
[331176932,1720121433533,-202.34507322,0.00012302,2]
[331176933,1720121433543,-524.36809456,0.00012302,2]
[331176934,1720121433553,-163.82863023,0.00012302,2]
[331176935,1720121433563,-1903.00590412,0.00012302,2]
[331176936,1720121433572,-155.14136228,0.00012302,2]
[331176937,1720121433582,-155.0,0.00012314,2]
[331176938,1720121433591,-475.43641296,0.00012314,2]
[331176939,1720121433600,-155.48552727,0.00012314,2]
[331176940,1720121433610,-204108.0,0.00012789,2]
[331176941,1720121433620,-299.99,0.00012822,2]
[331176942,1720121433632,-150.99,0.00012822,2]
[331176943,1720121433642,-375.84,0.00012846,2]
[331176944,1720121433652,-7691.88,0.00012857,2]
[331176945,1720121433663,-306.16090826,0.000129,2]
[331176947,1720121433674,-2500.0,0.00012923,2]
[331176949,1720121433683,-1914.3511,0.00012923,2]
[331176951,1720121433694,-4542.4753212,0.00013023,2]
[331176953,1720121433707,-504.54205974,0.00013023,2]
[331176955,1720121433718,-999.92961906,0.00013023,2]
[331176957,1720121433728,-212.3449,0.00013081,2]
[331176959,1720121433742,-500.0,0.00013126,2]
[331176961,1720121433751,-717.89169523,0.00013128,2]
[331176963,1720121433760,-155.0,0.00013128,2]
[331176965,1720121433769,-155.4020911,0.00013128,2]
[331176967,1720121433779,-1216.48344249,0.00013128,2]
[331176969,1720121433788,-1287.66973724,0.00013472,2]
[331176971,1720121433800,-155.0,0.00013516,2]
[331176973,1720121433809,-613.01736691,0.00013516,2]
[331176975,1720121433819,-147.65487848,0.00013516,2]
[331176977,1720121433831,-344.43257524,0.00013516,2]
[331176979,1720121433841,-518.69562264,0.00013543,2]
[331176981,1720121433850,-106.32832749,0.00013558,2]
[331176984,1720121433862,-893.67167251,0.00013558,2]
[331176986,1720121433871,-150.0,0.00013667,2]
[331176987,1720121433881,-212.78180212,0.00013699,2]
[331177092,1720121439007,-229.13265735,0.00012273,2]
[331177093,1720121439018,-84.84734265,0.00013699,2]
[331177094,1720121439033,-1920.40435523,0.00013699,2]
[331177095,1720121439043,-503.72651621,0.00013699,2]
[331177096,1720121439055,-712.39833394,0.00013699,2]
[331177097,1720121439068,-500.6964493,0.00013699,2]
[331177098,1720121439081,-355.11870055,0.00013699,2]
[331177099,1720121439092,-486.67,0.00013699,2]
[331177100,1720121439102,-222.66,0.00013699,2]
[331177101,1720121439113,-673.88428946,0.00013699,5]
[331177102,1720121439649,-660.96571054,0.00013699,5]
[331177107,1720121439664,-150.0,0.00013702,2]
[331177110,1720121439675,-141.32224426,0.00013703,2]
[331177265,1720121441219,-837.68356231,0.00012923,2]
[331177267,1720121441232,-4953.70943769,0.00012923,2]
[331177269,1720121441242,-8.67775574,0.00013703,2]
[331177271,1720121441252,-150.0,0.00013711,2]
[331177273,1720121441262,-300.0,0.00013721,2]
[331177275,1720121441272,-1217.55527685,0.00013735,2]
[331177277,1720121441282,-955.85753929,0.00013736,2]
[331177279,1720121441292,-1055.23788443,0.00013736,2]
[331177281,1720121441302,-1500.0,0.00013747,2]
[331177283,1720121441312,-1500.0,0.00013754,2]
[331177285,1720121441323,-1500.0,0.00013756,2]
[331177287,1720121441333,-1253.15958212,0.00013759,2]
[331177289,1720121441343,-791.23894816,0.00013759,2]
[331177291,1720121441354,-300.0,0.00013759,2]
[331177293,1720121441365,-305.60058791,0.00013769,2]
[331177295,1720121441376,-150.0,0.00013771,2]
[331177297,1720121441395,-1500.0,0.00013778,2]
[331177300,1720121441406,-150.0,0.00013781,2]
[331177302,1720121441419,-1500.0,0.00013788,2]
[331177304,1720121441430,-150.0,0.0001379,2]
[331177306,1720121441442,-5606.142,0.000138,2]
[331177308,1720121441454,-181.83894053,0.000138,2]
[331177310,1720121441466,-700.0,0.000138,5]
[331177312,1720121441477,-1500.0,0.00013803,2]
[331177314,1720121441488,-1500.0,0.00013808,2]
[331177316,1720121441499,-1500.0,0.00013812,2]
[331177317,1720121441510,-1500.0,0.00013814,2]
[331177319,1720121441522,-150.0,0.00013817,2]
[331177321,1720121441532,-150.0,0.00013826,2]
[331177323,1720121441542,-15760.6226,0.00013826,2]
[331177325,1720121441553,-300.0,0.00013839,2]
[331177327,1720121441563,-151.47007678,0.00013845,2]
[331177329,1720121441573,-297.74410483,0.00013849,2]
[331177331,1720121441583,-21344.23398799,0.0001386,2]
[331177333,1720121441594,-10457.30062008,0.0001386,2]
[331177335,1720121441604,-300.0,0.00013869,2]
[331177337,1720121441614,-150.0,0.00013881,2]
[331177339,1720121441624,-150.0,0.00013887,2]
[331177341,1720121441640,-724.64145173,0.00013889,2]
[331177343,1720121441654,-269.66585557,0.00013889,2]
[331177345,1720121441666,-220.02,0.0001389,3]
[331177346,1720121441677,-150.0,0.00013895,2]
[331177347,1720121441691,-300.0,0.00013898,2]
[331177348,1720121441702,-1500.0,0.00013899,2]
[331177349,1720121441712,-259.91784709,0.00013899,2]
[331177350,1720121441722,-365.10484834,0.00013899,2]
[331177351,1720121441735,-155.0,0.00013899,2]
[331177352,1720121441747,-801.1749,0.000139,2]
[331177353,1720121441756,-500.0,0.000139,2]
[331177354,1720121441767,-52572.87067221,0.000139,2]
[331177357,1720121441780,-10196.57812099,0.000139,2]
[331177359,1720121441792,-578.34375556,0.000139,2]
[331177361,1720121441804,-9920.5,0.000139,2]
[331177363,1720121441817,-2083.94813132,0.000139,2]
[331177365,1720121441828,-580.3259659,0.000139,2]
[331177371,1720121441875,-336.00880005,0.000139,2]
[331177373,1720121441891,-3200.6762738,0.000139,2]
[331177375,1720121441904,-256.89893274,0.000139,2]
[331177378,1720121441916,-20129.62684743,0.000139,2]
[331177380,1720121441927,-1789.6264,0.000139,2]
[331177382,1720121441937,-1000.0,0.000139,2]
[331177384,1720121441948,-167.44167065,0.000139,2]
[331177386,1720121441958,-1400.0,0.000139,5]
[331177388,1720121441968,-1500.0,0.00013905,2]
[331177390,1720121441978,-1500.0,0.00013907,2]
[331177392,1720121441988,-174.35317531,0.00013926,2]
[331177394,1720121441998,-4157.83569575,0.00013926,2]
[331177396,1720121442008,-1500.0,0.00013936,2]
[331177398,1720121442019,-1500.0,0.00013951,2]
[331177400,1720121442029,-1500.0,0.00013966,2]
[331177402,1720121442039,-2000.0,0.00013973,3]
[331177404,1720121442049,-684.98447952,0.00013989,2]
[331177406,1720121442059,-251.19336814,0.00013989,2]
[331177408,1720121442070,-186.51762411,0.00013989,2]
[331177410,1720121442081,-155.17578184,0.00013989,2]
[331177412,1720121442092,-167.62086348,0.0001399,2]
[331177414,1720121442102,-182.79451325,0.00013999,2]
[331177416,1720121442112,-410.07016707,0.00013999,2]
[331177418,1720121442123,-192.46067517,0.00013999,2]
[331177420,1720121442137,-26452.74413372,0.00014,2]
[331177423,1720121442149,-17976.70916267,0.00014,2]
[331177839,1720121447339,-301.88553806,0.00013899,2]
[331177841,1720121447351,-383.09894146,0.00013899,2]
[331177843,1720121447361,-2423.78360654,0.00013999,2]
[331177845,1720121447373,-476.18270524,0.00013999,2]
[331177847,1720121447393,-292.48,0.00013999,2]
[331177865,1720121447563,-1906.16833771,0.00013999,2]
[331177868,1720121447573,-2605.94246551,0.00014,2]
[331177872,1720121447584,-7296.73969016,0.00014,2]
[331177874,1720121447596,-1467.225,0.00014,2]
[331178567,1720121753186,-1000.0,0.0002551,120]
[331178568,1720121753213,-154.0,0.00025815,120]
[331178570,1720121809285,5533.89100371,0.00011199,2]
[331178572,1720121852957,-156.35,0.00018849,30]
[331178573,1720121853058,-320.0,0.00023,10]
[331178574,1720121853085,-2000.0,0.00023,30]
[331178575,1720121853109,-232.00581883,0.00023,30]
[331178576,1720121853156,-668.65372127,0.00025,30]
[331178577,1720121853182,-571.77,0.00025,14]
[331178578,1720121853207,-280.0,0.000253,10]
[331178579,1720121853237,-965.63,0.00026,15]
[331178580,1720121853261,-586.16914211,0.0002739,20]
[331178581,1720121853284,-293.08457106,0.0002739,25]
[331178582,1720121853307,-293.08457105,0.0002739,30]
[331178583,1720121853330,-162.53938847,0.00027397,90]
[331178584,1720121853353,-276.13664505,0.00027397,60]
[331178585,1720121853375,-456.0,0.00027397,13]
[331178586,1720121853398,-3794.7,0.00027397,10]
[331178587,1720121853420,-3162.25,0.00027397,10]
[331178588,1720121853441,-2635.21,0.00027397,10]
[331178589,1720121853466,-391.0,0.0002783,15]
[331178590,1720121853490,-156.35,0.00027982,30]
[331178591,1720121853512,-293.0,0.00028,120]
[331178592,1720121853534,-755372.16974171,0.00028,10]
[331178593,1720121853558,-2850.76,0.00028767,10]
[331178594,1720121853581,-1000.0,0.00029,120]
[331178595,1720121853604,-1288.524483,0.000298,10]
[331178596,1720121853626,-1000.0,0.0002982,10]
[331178597,1720121853648,-1000.0,0.0002984,10]
[331178598,1720121853669,-1000.0,0.0002986,10]
[331178599,1720121853691,-1000.0,0.0002988,10]
[331178600,1720121853714,-1000.0,0.000299,10]
[331178601,1720121853737,-1000.0,0.0002992,10]
[331178602,1720121853759,-1000.0,0.0002994,10]
[331178603,1720121853784,-1000.0,0.0002996,10]
[331178604,1720121853807,-1000.0,0.0002998,10]
[331178605,1720121853830,-26681.30550745,0.0003,30]
[331178606,1720121853855,-1000.0,0.0003,120]
[331178607,1720121853878,-1000.0,0.0003,120]
[331178608,1720121853901,-4000.0,0.0003,15]
[331178609,1720121853924,-2056.49601534,0.0003,30]
[331178610,1720121853948,-1000.0,0.0003,11]
[331178611,1720121853972,-154.016502,0.0003,14]
[331178612,1720121853995,-2850.76,0.00030136,12]
[331178613,1720121854019,-200.0,0.00030137,60]
[331178614,1720121854041,-548.0,0.00030613,30]
[331178615,1720121854063,-250.0,0.000308,30]
[331178616,1720121854085,-1000.0,0.00031,120]
[331178617,1720121854107,-900.0,0.00031,32]
[331178618,1720121854131,-150.0,0.00031184,120]
[331178619,1720121854166,-491.0,0.000314,16]
[331178620,1720121854188,-191.0,0.000314,16]
[331178621,1720121854210,-551.08031736,0.000314,30]
[331178622,1720121854232,-864.0,0.000314,16]
[331178623,1720121854255,-2850.76,0.00031506,14]
[331178624,1720121854277,-1000.0,0.00032,120]
[331178625,1720121854301,-1000.0,0.00032,120]
[331178626,1720121854325,-1800.0,0.00032,33]
[331178627,1720121854349,-577.02,0.00032876,120]
[331178628,1720121854371,-577.02,0.00032876,120]
[331178629,1720121854571,-577.02,0.00032876,120]
[331178630,1720121854595,-577.02,0.00032876,120]
[331178631,1720121854617,-577.02,0.00032876,120]
[331178632,1720121854641,-577.02,0.00032876,120]
[331178633,1720121854664,-577.02,0.00032876,120]
[331178634,1720121854688,-577.02,0.00032876,120]
[331178635,1720121854711,-577.02,0.00032876,120]
[331178636,1720121854735,-577.02,0.00032876,120]
[331178637,1720121854759,-577.02,0.00032876,120]
[331178638,1720121854786,-577.02,0.00032876,120]
[331178639,1720121854810,-577.02,0.00032876,120]
[331178640,1720121854834,-577.02,0.00032876,120]
[331178641,1720121854859,-577.02,0.00032876,120]
[331178642,1720121854882,-577.02,0.00032876,120]
[331178643,1720121854906,-577.02,0.00032876,120]
[331178644,1720121854928,-577.02,0.00032876,120]
[331178645,1720121854953,-577.02,0.00032876,120]
[331178646,1720121854978,-577.02,0.00032876,120]
[331178647,1720121855000,-577.02,0.00032876,120]
[331178648,1720121855022,-577.02,0.00032876,120]
[331178649,1720121855046,-577.02,0.00032876,120]
[331178650,1720121855070,-577.10264769,0.00032876,120]
[331178651,1720121855095,-2850.76,0.00032876,16]
[331178652,1720121855118,-500.0,0.00032876,120]
[331178653,1720121855140,-500.0,0.00032876,120]
[331178654,1720121855163,-500.0,0.00032876,120]
[331178655,1720121855185,-190.46844624,0.00032876,120]
[331178656,1720121855217,-200.0,0.00032877,60]
[331178657,1720121855242,-500.0,0.00032877,13]
[331178658,1720121855266,-500.0,0.00032877,13]
[331178659,1720121855290,-284.0,0.00032877,13]
[331178660,1720121855315,-1000.0,0.00033,120]
[331178661,1720121855340,-1800.0,0.00033,34]
[331178662,1720121855365,-654.95609,0.00033,14]
[331178663,1720121855391,-667.05,0.00033151,120]
[331178664,1720121855416,-337.71,0.00033151,120]
[331178665,1720121855440,-732.39570358,0.00033389,20]
[331178666,1720121855467,-2000.0,0.000334,10]
[331178667,1720121855491,-2000.0,0.000334,10]
[331178668,1720121855514,-554.0,0.00033674,30]
[331178669,1720121855540,-1000.0,0.00034,120]
[331178670,1720121855563,-1000.0,0.00034,120]